[Event "Titled Tuesday Blitz July 18 Late 2023"]
[White "Gyulamiryan-koryun"]
[Black "Miguelitro69"]
[WhiteElo "1914"]
[BlackElo "2267"]
[Result "0-1"]
[Round "8"]
[TimeControl "180+2"]
[Date "2023.07.18"]
[WhiteClock "0:00:13"]
[BlackClock "0:00:17"]
[Board "131"]

1. e4 {[%clk 0:02:56]}  c5 {[%clk 0:03:00]} 2. Nf3 {[%clk 0:02:54]}  Nc6 {[%clk 0:03:00]} 3. d4 {[%clk 0:02:54]}  cxd4 {[%clk 0:03:01]} 4. Nxd4 {[%clk 0:02:54]}  g6 {[%clk 0:03:02]} 5. c3 {[%clk 0:02:52]}  Bg7 {[%clk 0:03:01]} 6. Be3 {[%clk 0:02:52]}  Nf6 {[%clk 0:03:01]} 7. f3 {[%clk 0:02:50]}  O-O {[%clk 0:03:00]} 8. Qd2 {[%clk 0:02:50]}  d5 {[%clk 0:03:00]} 9. Nxc6 {[%clk 0:02:40]}  bxc6 {[%clk 0:03:01]} 10. exd5 {[%clk 0:02:37]}  cxd5 {[%clk 0:02:59]} 11. Bh6 {[%clk 0:02:35]}  Qb6 {[%clk 0:02:37]} 12. Bxg7 {[%clk 0:02:32]}  Kxg7 {[%clk 0:02:37]} 13. b3 {[%clk 0:02:19]}  Re8 {[%clk 0:02:34]} 14. Qd4 {[%clk 0:02:12]}  Qc7 {[%clk 0:02:30]} 15. a4 {[%clk 0:02:09]}  e5 {[%clk 0:02:30]} 16. Qh4 {[%clk 0:01:58]}  e4 {[%clk 0:02:12]} 17. Bb5 {[%clk 0:01:48]}  exf3+ {[%clk 0:01:48]} 18. Bxe8 {[%clk 0:01:46]}  Qe5+ {[%clk 0:01:47]} 19. Kd1 {[%clk 0:01:32]}  Qe2+ {[%clk 0:01:28]} 20. Kc1 {[%clk 0:01:29]}  Bf5 {[%clk 0:01:22]} 21. Nd2 {[%clk 0:01:22]}  Qd3 {[%clk 0:01:11]} 22. Ra2 {[%clk 0:00:59]}  fxg2 {[%clk 0:00:50]} 23. Rg1 {[%clk 0:00:51]}  Qxc3+ {[%clk 0:00:50]} 24. Kd1 {[%clk 0:00:42]}  Rxe8 {[%clk 0:00:33]} 25. Rxg2 {[%clk 0:00:40]}  Ne4 {[%clk 0:00:28]} 26. Qf4 {[%clk 0:00:26]}  Nxd2 {[%clk 0:00:19]} 27. Qxd2 {[%clk 0:00:25]}  Qxb3+ {[%clk 0:00:17]} 28. Kc1 {[%clk 0:00:22]}  Rc8+ {[%clk 0:00:17]} 29. Rc2 {[%clk 0:00:20]}  Bxc2 {[%clk 0:00:13]} 30. Qxc2 {[%clk 0:00:20]}  Rxc2+ {[%clk 0:00:13]} 31. Rxc2 {[%clk 0:00:20]}  Qxa4 {[%clk 0:00:13]} 32. Kd2 {[%clk 0:00:20]}  d4 {[%clk 0:00:13]} 33. Kd3 {[%clk 0:00:18]}  Qb4 {[%clk 0:00:13]} 34. Rc4 {[%clk 0:00:17]}  Qb2 {[%clk 0:00:12]} 35. Rxd4 {[%clk 0:00:16]}  Qxh2 {[%clk 0:00:13]} 36. Kc4 {[%clk 0:00:14]}  Qa2+ {[%clk 0:00:12]} 37. Kd3 {[%clk 0:00:13]}  Qb1+ {[%clk 0:00:11]} 38. Kc4 {[%clk 0:00:13]}  Qb6 {[%clk 0:00:10]} 39. Rd5 {[%clk 0:00:12]}  h5 {[%clk 0:00:11]} 40. Rb5 {[%clk 0:00:12]}  Qxb5+ {[%clk 0:00:10]} 41. Kxb5 {[%clk 0:00:12]}  h4 {[%clk 0:00:11]} 42. Ka6 {[%clk 0:00:12]}  h3 {[%clk 0:00:12]} 43. Kxa7 {[%clk 0:00:13]}  h2 {[%clk 0:00:13]} 44. Kb6 {[%clk 0:00:14]}  h1=Q {[%clk 0:00:13]} 45. Kc5 {[%clk 0:00:15]}  Qd1 {[%clk 0:00:13]} 46. Kc4 {[%clk 0:00:15]}  g5 {[%clk 0:00:14]} 47. Kc5 {[%clk 0:00:15]}  g4 {[%clk 0:00:15]} 48. Kc4 {[%clk 0:00:16]}  g3 {[%clk 0:00:16]} 49. Kc5 {[%clk 0:00:16]}  g2 {[%clk 0:00:17]} 50. Kc4 {[%clk 0:00:13]}  g1=Q {[%clk 0:00:17]} 0-1


[Site "https://www.chess.com"]

[Event "Titled Tuesday Blitz July 18 Late 2023"]
[White "Kujawski, Adam"]
[Black "Chemin, Justo Reinaldo"]
[WhiteFideId "1100920"]
[BlackFideId "2101580"]
[WhiteElo "2320"]
[BlackElo "2248"]
[Result "1/2-1/2"]
[Round "8"]
[TimeControl "180+2"]
[Date "2023.07.18"]
[WhiteClock "0:00:17"]
[BlackClock "0:01:18"]
[Board "132"]

1. e4 {[%clk 0:03:00]}  e5 {[%clk 0:02:59]} 2. Nf3 {[%clk 0:03:00]}  Nc6 {[%clk 0:02:59]} 3. Bb5 {[%clk 0:03:00]}  g6 {[%clk 0:02:57]} 4. c3 {[%clk 0:02:58]}  d6 {[%clk 0:02:56]} 5. d4 {[%clk 0:02:57]}  Bd7 {[%clk 0:02:56]} 6. d5 {[%clk 0:02:49]}  Nb8 {[%clk 0:02:55]} 7. Bxd7+ {[%clk 0:02:47]}  Nxd7 {[%clk 0:02:55]} 8. c4 {[%clk 0:02:47]}  Bg7 {[%clk 0:02:55]} 9. Nc3 {[%clk 0:02:46]}  Ne7 {[%clk 0:02:53]} 10. Qc2 {[%clk 0:02:20]}  O-O {[%clk 0:02:51]} 11. Bd2 {[%clk 0:02:15]}  h6 {[%clk 0:02:51]} 12. g4 {[%clk 0:02:05]}  f5 {[%clk 0:02:39]} 13. gxf5 {[%clk 0:02:04]}  gxf5 {[%clk 0:02:40]} 14. Rg1 {[%clk 0:01:41]}  f4 {[%clk 0:02:37]} 15. O-O-O {[%clk 0:01:38]}  a5 {[%clk 0:02:36]} 16. Kb1 {[%clk 0:01:30]}  Nf6 {[%clk 0:02:28]} 17. Qd3 {[%clk 0:01:26]}  Qe8 {[%clk 0:02:20]} 18. Nb5 {[%clk 0:01:17]}  Qd7 {[%clk 0:02:16]} 19. c5 {[%clk 0:01:04]}  Nxe4 {[%clk 0:02:00]} 20. Qxe4 {[%clk 0:01:03]}  Qxb5 {[%clk 0:01:59]} 21. cxd6 {[%clk 0:01:02]}  cxd6 {[%clk 0:01:59]} 22. Bc3 {[%clk 0:00:49]}  Rac8 {[%clk 0:01:57]} 23. Nh4 {[%clk 0:00:29]}  Rxc3 {[%clk 0:01:46]} 24. Rxg7+ {[%clk 0:00:28]}  Kxg7 {[%clk 0:01:45]} 25. Rg1+ {[%clk 0:00:28]}  Kf7 {[%clk 0:01:45]} 26. Nf5 {[%clk 0:00:19]}  Qd3+ {[%clk 0:01:26]} 27. Qxd3 {[%clk 0:00:18]}  Rxd3 {[%clk 0:01:27]} 28. Nxd6+ {[%clk 0:00:17]}  Kf6 {[%clk 0:01:23]} 29. Ne4+ {[%clk 0:00:17]}  Kf7 {[%clk 0:01:19]} 30. Nd6+ {[%clk 0:00:17]}  Kf6 {[%clk 0:01:19]} 31. Ne4+ {[%clk 0:00:17]}  Kf5 {[%clk 0:01:19]} 32. Nd6+ {[%clk 0:00:17]}  Kf6 {[%clk 0:01:18]} 1/2-1/2


[Site "https://www.chess.com"]

[Event "Titled Tuesday Blitz July 18 Late 2023"]
[White "Vaglio Munoz, Jaime"]
[Black "Navyblue1"]
[WhiteFideId "6500145"]
[WhiteElo "2274"]
[BlackElo "1860"]
[Result "1-0"]
[Round "8"]
[TimeControl "180+2"]
[Date "2023.07.18"]
[WhiteClock "0:01:24"]
[BlackClock "0:00:00"]
[Board "133"]

1. e4 {[%clk 0:03:00]}  c5 {[%clk 0:02:59]} 2. a3 {[%clk 0:03:00]}  Nf6 {[%clk 0:02:57]} 3. e5 {[%clk 0:02:59]}  Nd5 {[%clk 0:02:55]} 4. c4 {[%clk 0:02:59]}  Nc7 {[%clk 0:02:53]} 5. b4 {[%clk 0:02:59]}  cxb4 {[%clk 0:02:51]} 6. axb4 {[%clk 0:03:00]}  Nc6 {[%clk 0:02:51]} 7. d4 {[%clk 0:02:52]}  d5 {[%clk 0:02:41]} 8. b5 {[%clk 0:02:48]}  Nb8 {[%clk 0:02:36]} 9. c5 {[%clk 0:02:47]}  Bd7 {[%clk 0:02:04]} 10. Nc3 {[%clk 0:02:45]}  e6 {[%clk 0:01:52]} 11. Qg4 {[%clk 0:02:44]}  f6 {[%clk 0:01:36]} 12. Nf3 {[%clk 0:02:40]}  g6 {[%clk 0:01:27]} 13. h4 {[%clk 0:02:38]}  Bg7 {[%clk 0:00:53]} 14. h5 {[%clk 0:02:36]}  Kf7 {[%clk 0:00:48]} 15. Bd3 {[%clk 0:02:34]}  f5 {[%clk 0:00:43]} 16. Qg3 {[%clk 0:02:30]}  Qe8 {[%clk 0:00:27]} 17. h6 {[%clk 0:02:20]}  Bf8 {[%clk 0:00:26]} 18. Ng5+ {[%clk 0:02:19]}  Kg8 {[%clk 0:00:25]} 19. f4 {[%clk 0:02:17]}  Be7 {[%clk 0:00:18]} 20. Rb1 {[%clk 0:02:05]}  Bc8 {[%clk 0:00:12]} 21. b6 {[%clk 0:01:59]}  axb6 {[%clk 0:00:11]} 22. Rxb6 {[%clk 0:01:58]}  Nc6 {[%clk 0:00:10]} 23. Be3 {[%clk 0:01:50]}  Ra1+ {[%clk 0:00:09]} 24. Nd1 {[%clk 0:01:50]}  Bxg5 {[%clk 0:00:07]} 25. Qxg5 {[%clk 0:01:49]}  Qe7 {[%clk 0:00:07]} 26. Qg3 {[%clk 0:01:41]}  Kf7 {[%clk 0:00:07]} 27. O-O {[%clk 0:01:40]}  Rd8 {[%clk 0:00:05]} 28. Nc3 {[%clk 0:01:29]}  Rxf1+ {[%clk 0:00:04]} 29. Kxf1 {[%clk 0:01:29]}  Qf8 {[%clk 0:00:04]} 30. Qh3 {[%clk 0:01:27]}  Qe7 {[%clk 0:00:03]} 31. Ke2 {[%clk 0:01:26]}  Na8 {[%clk 0:00:03]} 32. Rb1 {[%clk 0:01:25]}  Nc7 {[%clk 0:00:00]} 33. g4 {[%clk 0:01:24]} 1-0


[Site "https://www.chess.com"]

[Event "Titled Tuesday Blitz July 18 Late 2023"]
[White "Melikhov, Evgeny V."]
[Black "Tqebuchava, Zurab"]
[WhiteFideId "4122046"]
[BlackFideId "13601113"]
[WhiteElo "2366"]
[BlackElo "2108"]
[Result "1/2-1/2"]
[Round "8"]
[TimeControl "180+2"]
[Date "2023.07.18"]
[WhiteClock "0:00:30"]
[BlackClock "0:00:15"]
[Board "135"]

1. d4 {[%clk 0:03:00]}  d6 {[%clk 0:03:00]} 2. e4 {[%clk 0:03:00]}  Nf6 {[%clk 0:03:01]} 3. Bd3 {[%clk 0:02:59]}  Nbd7 {[%clk 0:03:00]} 4. c4 {[%clk 0:02:58]}  e5 {[%clk 0:03:00]} 5. d5 {[%clk 0:02:57]}  g6 {[%clk 0:02:58]} 6. Nc3 {[%clk 0:02:56]}  Bg7 {[%clk 0:02:58]} 7. Nf3 {[%clk 0:02:49]}  O-O {[%clk 0:02:58]} 8. h3 {[%clk 0:02:48]}  Nc5 {[%clk 0:02:57]} 9. Bc2 {[%clk 0:02:47]}  a5 {[%clk 0:02:57]} 10. Be3 {[%clk 0:02:44]}  b6 {[%clk 0:02:55]} 11. Qd2 {[%clk 0:02:42]}  Nh5 {[%clk 0:02:51]} 12. g3 {[%clk 0:02:34]}  f5 {[%clk 0:02:41]} 13. Ng5 {[%clk 0:02:31]}  f4 {[%clk 0:02:17]} 14. gxf4 {[%clk 0:02:27]}  exf4 {[%clk 0:02:16]} 15. Bxc5 {[%clk 0:02:24]}  bxc5 {[%clk 0:02:09]} 16. Ne6 {[%clk 0:02:21]}  Bxe6 {[%clk 0:01:59]} 17. dxe6 {[%clk 0:02:21]}  c6 {[%clk 0:01:59]} 18. O-O-O {[%clk 0:02:14]}  Be5 {[%clk 0:01:52]} 19. Ba4 {[%clk 0:01:55]}  Ra6 {[%clk 0:01:40]} 20. Bxc6 {[%clk 0:01:37]}  Bxc3 {[%clk 0:01:09]} 21. bxc3 {[%clk 0:01:24]}  Qf6 {[%clk 0:00:45]} 22. Bb5 {[%clk 0:01:06]}  Rb6 {[%clk 0:00:40]} 23. a4 {[%clk 0:01:04]}  Kg7 {[%clk 0:00:34]} 24. Kc2 {[%clk 0:00:59]}  Qxe6 {[%clk 0:00:33]} 25. f3 {[%clk 0:00:58]}  Ng3 {[%clk 0:00:25]} 26. Rh2 {[%clk 0:00:55]}  Qe5 {[%clk 0:00:22]} 27. Qd5 {[%clk 0:00:52]}  Qxd5 {[%clk 0:00:20]} 28. cxd5 {[%clk 0:00:52]}  Kf6 {[%clk 0:00:17]} 29. Kd3 {[%clk 0:00:49]}  Ke5 {[%clk 0:00:17]} 30. h4 {[%clk 0:00:45]}  h5 {[%clk 0:00:17]} 31. Rb2 {[%clk 0:00:39]}  Rc8 {[%clk 0:00:16]} 32. Rdb1 {[%clk 0:00:37]}  Rcb8 {[%clk 0:00:16]} 33. Rb3 {[%clk 0:00:35]}  R8b7 {[%clk 0:00:15]} 34. R3b2 {[%clk 0:00:32]}  Rb8 {[%clk 0:00:15]} 35. Rb3 {[%clk 0:00:32]}  R8b7 {[%clk 0:00:14]} 36. R3b2 {[%clk 0:00:30]}  Rb8 {[%clk 0:00:15]} 1/2-1/2


[Site "https://www.chess.com"]

[Event "Titled Tuesday Blitz July 18 Late 2023"]
[White "Schachpanda_Youtube"]
[Black "Joubert, Dantelle"]
[BlackFideId "14310813"]
[WhiteElo "2212"]
[BlackElo "2054"]
[Result "1-0"]
[Round "8"]
[TimeControl "180+2"]
[Date "2023.07.18"]
[WhiteClock "0:00:51"]
[BlackClock "0:00:00"]
[Board "136"]

1. e4 {[%clk 0:03:00]}  c5 {[%clk 0:02:58]} 2. d4 {[%clk 0:03:00]}  cxd4 {[%clk 0:02:58]} 3. c3 {[%clk 0:03:00]}  d3 {[%clk 0:02:56]} 4. Bxd3 {[%clk 0:02:59]}  Nc6 {[%clk 0:02:56]} 5. c4 {[%clk 0:02:59]}  Nf6 {[%clk 0:02:52]} 6. Nf3 {[%clk 0:02:58]}  d6 {[%clk 0:02:51]} 7. h3 {[%clk 0:02:57]}  g6 {[%clk 0:02:51]} 8. O-O {[%clk 0:02:57]}  Bg7 {[%clk 0:02:50]} 9. Nc3 {[%clk 0:02:58]}  O-O {[%clk 0:02:50]} 10. Be3 {[%clk 0:02:58]}  Qa5 {[%clk 0:02:44]} 11. a3 {[%clk 0:02:43]}  Bd7 {[%clk 0:02:09]} 12. b4 {[%clk 0:02:40]}  Qd8 {[%clk 0:01:51]} 13. Rc1 {[%clk 0:02:38]}  Be6 {[%clk 0:01:43]} 14. Qe2 {[%clk 0:02:35]}  a6 {[%clk 0:01:02]} 15. Rfd1 {[%clk 0:02:33]}  Rc8 {[%clk 0:00:56]} 16. c5 {[%clk 0:02:04]}  dxc5 {[%clk 0:00:50]} 17. Bxc5 {[%clk 0:01:57]}  Qe8 {[%clk 0:00:46]} 18. Ng5 {[%clk 0:01:44]}  Bb3 {[%clk 0:00:44]} 19. Rd2 {[%clk 0:01:35]}  Bh6 {[%clk 0:00:37]} 20. f4 {[%clk 0:01:26]}  Nh5 {[%clk 0:00:12]} 21. Be3 {[%clk 0:01:14]}  Bxg5 {[%clk 0:00:02]} 22. fxg5 {[%clk 0:01:13]}  Ne5 {[%clk 0:00:02]} 23. Bc2 {[%clk 0:00:56]}  Bxc2 {[%clk 0:00:01]} 24. Rdxc2 {[%clk 0:00:55]}  Nc4 {[%clk 0:00:00]} 25. Bd4 {[%clk 0:00:51]} 1-0


[Site "https://www.chess.com"]

[Event "Titled Tuesday Blitz July 18 Late 2023"]
[White "SoyuzTM4"]
[Black "Burke, Paul"]
[BlackFideId "2605767"]
[WhiteElo "2198"]
[BlackElo "1985"]
[Result "1-0"]
[Round "8"]
[TimeControl "180+2"]
[Date "2023.07.18"]
[WhiteClock "0:00:57"]
[BlackClock "0:00:53"]
[Board "137"]

1. e4 {[%clk 0:03:00]}  e5 {[%clk 0:02:58]} 2. Nf3 {[%clk 0:03:00]}  Nc6 {[%clk 0:02:58]} 3. Bb5 {[%clk 0:02:59]}  f5 {[%clk 0:02:58]} 4. d3 {[%clk 0:02:54]}  Nf6 {[%clk 0:02:58]} 5. Bxc6 {[%clk 0:02:51]}  dxc6 {[%clk 0:02:57]} 6. Nc3 {[%clk 0:02:50]}  fxe4 {[%clk 0:02:56]} 7. dxe4 {[%clk 0:02:48]}  Qxd1+ {[%clk 0:02:56]} 8. Kxd1 {[%clk 0:02:44]}  Bg4 {[%clk 0:02:54]} 9. Bg5 {[%clk 0:02:41]}  O-O-O+ {[%clk 0:02:51]} 10. Ke2 {[%clk 0:02:40]}  Be7 {[%clk 0:02:39]} 11. h3 {[%clk 0:02:37]}  Bxf3+ {[%clk 0:02:39]} 12. Kxf3 {[%clk 0:02:33]}  h6 {[%clk 0:02:38]} 13. Bh4 {[%clk 0:02:31]}  Rd2 {[%clk 0:02:31]} 14. Rac1 {[%clk 0:02:18]}  Bb4 {[%clk 0:02:12]} 15. Nb1 {[%clk 0:02:01]}  Rd7 {[%clk 0:02:05]} 16. a3 {[%clk 0:01:59]}  Bd6 {[%clk 0:01:50]} 17. Bxf6 {[%clk 0:01:48]}  gxf6 {[%clk 0:01:49]} 18. Nc3 {[%clk 0:01:41]}  Rf7 {[%clk 0:01:43]} 19. g4 {[%clk 0:01:38]}  h5 {[%clk 0:01:42]} 20. Ne2 {[%clk 0:01:35]}  hxg4+ {[%clk 0:01:39]} 21. hxg4 {[%clk 0:01:35]}  Rfh7 {[%clk 0:01:38]} 22. Ng3 {[%clk 0:01:31]}  Kd7 {[%clk 0:01:33]} 23. Rxh7+ {[%clk 0:01:25]}  Rxh7 {[%clk 0:01:32]} 24. Nh5 {[%clk 0:01:24]}  Ke6 {[%clk 0:01:26]} 25. Rh1 {[%clk 0:01:23]}  Bc5 {[%clk 0:01:16]} 26. Nf4+ {[%clk 0:01:20]}  exf4 {[%clk 0:01:13]} 27. Rxh7 {[%clk 0:01:20]}  Bd4 {[%clk 0:01:12]} 28. c3 {[%clk 0:01:20]}  Be5 {[%clk 0:01:13]} 29. Ke2 {[%clk 0:01:11]}  b5 {[%clk 0:01:11]} 30. f3 {[%clk 0:01:10]}  a5 {[%clk 0:01:08]} 31. Kd3 {[%clk 0:01:08]}  c5 {[%clk 0:01:08]} 32. Rh8 {[%clk 0:01:00]}  b4 {[%clk 0:01:06]} 33. Ra8 {[%clk 0:00:57]}  bxc3 {[%clk 0:00:53]} 34. bxc3 {[%clk 0:00:57]} 1-0


[Site "https://www.chess.com"]

[Event "Titled Tuesday Blitz July 18 Late 2023"]
[White "Mangialardo, Tiago Carvalho"]
[Black "Sainz Aguirre, Ignacio"]
[WhiteFideId "2130718"]
[BlackFideId "5101727"]
[WhiteElo "2138"]
[BlackElo "1973"]
[Result "1-0"]
[Round "8"]
[TimeControl "180+2"]
[Date "2023.07.18"]
[WhiteClock "0:00:02"]
[BlackClock "0:00:00"]
[Board "138"]

1. e4 {[%clk 0:03:00]}  e6 {[%clk 0:02:59]} 2. d4 {[%clk 0:03:00]}  d5 {[%clk 0:02:59]} 3. exd5 {[%clk 0:03:00]}  exd5 {[%clk 0:02:59]} 4. c4 {[%clk 0:03:01]}  Bb4+ {[%clk 0:02:54]} 5. Nc3 {[%clk 0:03:01]}  Ne7 {[%clk 0:02:44]} 6. Nf3 {[%clk 0:03:00]}  O-O {[%clk 0:02:40]} 7. Be2 {[%clk 0:02:57]}  dxc4 {[%clk 0:02:36]} 8. Bxc4 {[%clk 0:02:56]}  Bg4 {[%clk 0:02:35]} 9. O-O {[%clk 0:02:49]}  Nbc6 {[%clk 0:02:31]} 10. Be3 {[%clk 0:02:41]}  Nf5 {[%clk 0:02:28]} 11. Nd5 {[%clk 0:02:30]}  Bd6 {[%clk 0:02:19]} 12. h3 {[%clk 0:02:15]}  Bxf3 {[%clk 0:02:16]} 13. Qxf3 {[%clk 0:02:13]}  Ncxd4 {[%clk 0:02:13]} 14. Qg4 {[%clk 0:01:49]}  Nxe3 {[%clk 0:02:00]} 15. fxe3 {[%clk 0:01:42]}  Ne6 {[%clk 0:01:55]} 16. Nf6+ {[%clk 0:00:37]}  Kh8 {[%clk 0:01:40]} 17. Bxe6 {[%clk 0:00:37]}  fxe6 {[%clk 0:01:33]} 18. Nh5 {[%clk 0:00:33]}  Qe7 {[%clk 0:01:25]} 19. Qe4 {[%clk 0:00:18]}  Rf5 {[%clk 0:01:01]} 20. Qxb7 {[%clk 0:00:04]}  Raf8 {[%clk 0:01:01]} 21. g4 {[%clk 0:00:02]}  Qh4 {[%clk 0:00:43]} 22. gxf5 {[%clk 0:00:02]}  Qxh5 {[%clk 0:00:28]} 23. Qf3 {[%clk 0:00:02]}  Qg5+ {[%clk 0:00:17]} 24. Qg4 {[%clk 0:00:03]}  Qxe3+ {[%clk 0:00:15]} 25. Kh1 {[%clk 0:00:03]}  exf5 {[%clk 0:00:12]} 26. Rxf5 {[%clk 0:00:03]}  Rxf5 {[%clk 0:00:05]} 27. Qxf5 {[%clk 0:00:03]}  h6 {[%clk 0:00:04]} 28. Rg1 {[%clk 0:00:03]}  Qe2 {[%clk 0:00:00]} 29. Qc8+ {[%clk 0:00:02]} 1-0


[Site "https://www.chess.com"]

[Event "Titled Tuesday Blitz July 18 Late 2023"]
[White "Liu, Casper"]
[Black "Campos, Maria Jose"]
[WhiteFideId "1454153"]
[BlackFideId "146803"]
[WhiteElo "2426"]
[BlackElo "2360"]
[Result "0-1"]
[Round "8"]
[TimeControl "180+2"]
[Date "2023.07.18"]
[WhiteClock "0:02:12"]
[BlackClock "0:02:21"]
[Board "140"]

1. e4 {[%clk 0:03:00]}  e5 {[%clk 0:02:59]} 2. d4 {[%clk 0:03:01]}  exd4 {[%clk 0:02:59]} 3. Qxd4 {[%clk 0:03:02]}  Nc6 {[%clk 0:02:59]} 4. Qe3 {[%clk 0:03:03]}  g6 {[%clk 0:02:58]} 5. Nc3 {[%clk 0:03:03]}  Bg7 {[%clk 0:02:59]} 6. Bd2 {[%clk 0:03:03]}  Nf6 {[%clk 0:02:58]} 7. O-O-O {[%clk 0:03:04]}  O-O {[%clk 0:02:59]} 8. h4 {[%clk 0:03:04]}  Re8 {[%clk 0:02:55]} 9. f3 {[%clk 0:03:04]}  d5 {[%clk 0:02:53]} 10. Bb5 {[%clk 0:03:03]}  d4 {[%clk 0:02:49]} 11. Qg5 {[%clk 0:03:00]}  dxc3 {[%clk 0:02:47]} 12. Bxc3 {[%clk 0:03:01]}  Nd7 {[%clk 0:02:38]} 13. Qd5 {[%clk 0:02:27]}  Bxc3 {[%clk 0:02:33]} 14. bxc3 {[%clk 0:02:27]}  Qf6 {[%clk 0:02:32]} 15. Nh3 {[%clk 0:02:22]}  Nb6 {[%clk 0:02:30]} 16. Qc5 {[%clk 0:02:18]}  Bxh3 {[%clk 0:02:26]} 17. Rxh3 {[%clk 0:02:17]}  Rad8 {[%clk 0:02:26]} 18. h5 {[%clk 0:02:16]}  Qf4+ {[%clk 0:02:25]} 19. Kb2 {[%clk 0:02:15]}  Rxd1 {[%clk 0:02:24]} 20. hxg6 {[%clk 0:02:12]}  hxg6 {[%clk 0:02:21]} 0-1


[Site "https://www.chess.com"]

[Event "Titled Tuesday Blitz July 18 Late 2023"]
[White "Matlakov, Maxim"]
[Black "Naroditsky, Daniel"]
[WhiteFideId "4168003"]
[BlackFideId "2026961"]
[WhiteElo "2972"]
[BlackElo "3142"]
[Result "1-0"]
[Round "9"]
[TimeControl "180+2"]
[Date "2023.07.18"]
[WhiteClock "0:00:40"]
[BlackClock "0:00:02"]
[Board "2"]

1. e4 {[%clk 0:02:59]}  Nf6 {[%clk 0:02:59]} 2. Nc3 {[%clk 0:02:57]}  d5 {[%clk 0:02:58]} 3. e5 {[%clk 0:02:56]}  Nfd7 {[%clk 0:02:57]} 4. Nxd5 {[%clk 0:02:54]}  Nxe5 {[%clk 0:02:57]} 5. Ne3 {[%clk 0:02:54]}  c5 {[%clk 0:02:57]} 6. b3 {[%clk 0:02:47]}  g6 {[%clk 0:02:39]} 7. f4 {[%clk 0:02:47]}  Nec6 {[%clk 0:02:37]} 8. Bb2 {[%clk 0:02:47]}  Nd4 {[%clk 0:02:37]} 9. c3 {[%clk 0:02:38]}  Ndc6 {[%clk 0:02:34]} 10. Nf3 {[%clk 0:02:37]}  Bg7 {[%clk 0:02:34]} 11. h4 {[%clk 0:02:36]}  h5 {[%clk 0:02:27]} 12. Bc4 {[%clk 0:02:31]}  e6 {[%clk 0:02:28]} 13. Qe2 {[%clk 0:02:29]}  a6 {[%clk 0:02:18]} 14. O-O-O {[%clk 0:02:29]}  b5 {[%clk 0:02:18]} 15. Bd3 {[%clk 0:02:29]}  Bb7 {[%clk 0:01:58]} 16. f5 {[%clk 0:02:28]}  gxf5 {[%clk 0:01:57]} 17. Nxf5 {[%clk 0:02:27]}  Bf6 {[%clk 0:01:55]} 18. Ng5 {[%clk 0:02:26]}  Ne5 {[%clk 0:01:42]} 19. Bc2 {[%clk 0:02:16]}  c4 {[%clk 0:01:26]} 20. Ng3 {[%clk 0:01:47]}  Nd3+ {[%clk 0:01:20]} 21. Bxd3 {[%clk 0:01:46]}  Qxd3 {[%clk 0:01:21]} 22. Qf2 {[%clk 0:01:40]}  Nd7 {[%clk 0:01:09]} 23. Rhe1 {[%clk 0:01:26]}  Bxg5 {[%clk 0:00:41]} 24. hxg5 {[%clk 0:01:26]}  h4 {[%clk 0:00:42]} 25. g6 {[%clk 0:01:19]}  Qxg6 {[%clk 0:00:22]} 26. Ne2 {[%clk 0:01:16]}  Ne5 {[%clk 0:00:16]} 27. Nf4 {[%clk 0:01:14]}  Qf5 {[%clk 0:00:05]} 28. d4 {[%clk 0:01:12]}  cxd3 {[%clk 0:00:02]} 29. Rxe5 {[%clk 0:01:08]}  Qxe5 {[%clk 0:00:02]} 30. c4 {[%clk 0:01:09]}  Qg5 {[%clk 0:00:01]} 31. Bxh8 {[%clk 0:01:07]}  O-O-O {[%clk 0:00:02]} 32. Bc3 {[%clk 0:01:03]}  Bxg2 {[%clk 0:00:03]} 33. Qxg2 {[%clk 0:01:01]}  Qxf4+ {[%clk 0:00:03]} 34. Kb2 {[%clk 0:01:01]}  Qc7 {[%clk 0:00:01]} 35. cxb5 {[%clk 0:00:59]}  axb5 {[%clk 0:00:02]} 36. Rc1 {[%clk 0:00:56]}  Kb8 {[%clk 0:00:02]} 37. Bf6 {[%clk 0:00:48]}  d2 {[%clk 0:00:02]} 38. Rxc7 {[%clk 0:00:46]}  d1=N+ {[%clk 0:00:02]} 39. Kc1 {[%clk 0:00:43]}  Rd5 {[%clk 0:00:02]} 40. Rxf7 {[%clk 0:00:40]}  Ne3 {[%clk 0:00:02]} 41. Qg8+ {[%clk 0:00:40]} 1-0


[Site "https://www.chess.com"]

[Event "Titled Tuesday Blitz July 18 Late 2023"]
[White "Xiong, Jeffery"]
[Black "Martinez Alcantara, Jose Eduardo"]
[WhiteFideId "2047640"]
[BlackFideId "3805662"]
[WhiteElo "2981"]
[BlackElo "3068"]
[Result "1-0"]
[Round "9"]
[TimeControl "180+2"]
[Date "2023.07.18"]
[WhiteClock "0:01:31"]
[BlackClock "0:00:34"]
[Board "3"]

1. e4 {[%clk 0:03:00]}  c5 {[%clk 0:02:59]} 2. Nf3 {[%clk 0:03:01]}  d6 {[%clk 0:02:59]} 3. Nc3 {[%clk 0:03:02]}  a6 {[%clk 0:02:59]} 4. d4 {[%clk 0:03:01]}  cxd4 {[%clk 0:03:00]} 5. Qxd4 {[%clk 0:03:02]}  Nc6 {[%clk 0:03:00]} 6. Qd3 {[%clk 0:03:02]}  g6 {[%clk 0:02:58]} 7. Nd5 {[%clk 0:02:58]}  Nf6 {[%clk 0:02:26]} 8. Nxf6+ {[%clk 0:02:56]}  exf6 {[%clk 0:02:27]} 9. Be2 {[%clk 0:02:57]}  Bg7 {[%clk 0:02:24]} 10. O-O {[%clk 0:02:57]}  O-O {[%clk 0:02:24]} 11. Rd1 {[%clk 0:02:44]}  f5 {[%clk 0:02:25]} 12. exf5 {[%clk 0:02:18]}  Bxf5 {[%clk 0:02:26]} 13. Qb3 {[%clk 0:02:18]}  Re8 {[%clk 0:02:04]} 14. Be3 {[%clk 0:02:15]}  Qc7 {[%clk 0:01:59]} 15. c3 {[%clk 0:02:12]}  Rac8 {[%clk 0:01:30]} 16. Rd2 {[%clk 0:02:12]}  Na5 {[%clk 0:01:27]} 17. Qb4 {[%clk 0:02:08]}  Nc4 {[%clk 0:01:14]} 18. Bxc4 {[%clk 0:02:08]}  Qxc4 {[%clk 0:01:15]} 19. Qxc4 {[%clk 0:02:00]}  Rxc4 {[%clk 0:01:15]} 20. Rxd6 {[%clk 0:02:00]}  h6 {[%clk 0:01:10]} 21. h3 {[%clk 0:02:00]}  g5 {[%clk 0:01:10]} 22. Rad1 {[%clk 0:01:56]}  Rcc8 {[%clk 0:01:05]} 23. h4 {[%clk 0:01:46]}  gxh4 {[%clk 0:00:47]} 24. Bxh6 {[%clk 0:01:44]}  Bxh6 {[%clk 0:00:45]} 25. Rxh6 {[%clk 0:01:45]}  Re2 {[%clk 0:00:44]} 26. Nd4 {[%clk 0:01:42]}  Rd8 {[%clk 0:00:35]} 27. Rf1 {[%clk 0:01:32]}  Re5 {[%clk 0:00:36]} 28. Rh5 {[%clk 0:01:31]}  Rdd5 {[%clk 0:00:36]} 29. f4 {[%clk 0:01:31]}  Rxd4 {[%clk 0:00:34]} 30. fxe5 {[%clk 0:01:31]} 1-0


[Site "https://www.chess.com"]